[Event "4NCL 2022-2023"]
[Site "Daventry"]
[Date "2023.03.18"]
[Round "7.29"]
[White "Robertson, J Stuart"]
[Black "Redmond, John P."]
[Result "1/2-1/2"]
[ECO "A90"]
[WhiteElo "2155"]
[BlackElo "2196"]
[Annotator "TA"]
[PlyCount "74"]
[EventDate "2022.10.20"]
[EventType "team-tourn"]
[EventCountry "ENG"]
[SourceTitle "playchess.com"]
[Source "ChessBase"]
[SourceQuality "1"]
[TimeControl "40/6000+30:2400+30"]

{[%evp 9,74,27,26,26,24,27,30,30,24,41,53,34,39,38,62,20,20,10,12,0,1,0,11,-47,-16,-22,59,50,53,61,54,25,81,-544,-530,-799,-797,-745,-783,-1455,-879,-758,-334,-320,-199,-179,0,-135,-67,-166,-139,-136,-101,-109,-102,-105,-87,-100,-87,-120,-75,-90,0,-120,0,-79,0]} 1. d4 {[%emt 0:06:14]} e6 {[%emt 0:00:15]} 2. c4 {[%emt 0:00:04]} f5 {[%emt 0:00:16]} 3. g3 {[%emt 0:00:10]} Nf6 {[%emt 0:00:10]} 4. Bg2 {[%emt 0:00:08]} d5 {[%emt 0:00:10]} 5. Nc3 {[%emt 0:00:13]} c6 {[%emt 0:00:12]} 6. Qc2 {[%emt 0:00:16] A90: Dutch Defence: Miscellaneous and Modern Stonewall (with ...Bd6).} Bd6 {[%emt 0:00:38]} 7. Nh3 {[%emt 0:00:29]} O-O {[%emt 0:00:32]} 8. O-O {[%emt 0:00:04] White has an edge.} Na6 {[%emt 0:18:54] [#]} 9. Rd1 $146 {[%emt 0:09:51]} ({Predecessor:} 9. b3 Qe7 10. Rd1 Nb4 11. Qb2 e5 12. a3 exd4 13. Rxd4 Be5 14. Be3 c5 15. axb4 Bxd4 16. Bxd4 cxd4 17. Nxd5 Nxd5 18. Bxd5+ {½-½ Avotins,M (2456)-Poljak,D (2439) Horvath Memorial email 2016}) 9... Bd7 {[%emt 0:03:39]} 10. Bf4 {[%emt 0:03:43]} Be7 {[%emt 0:02:54]} 11. a3 {[%emt 0:05:07]} b5 {[%emt 0:08:09]} 12. cxb5 {[%emt 0:05:43] White is more active.} cxb5 {[%emt 0:00:07]} 13. Qd3 {[%emt 0:02:36]} Qb6 {[%emt 0:01:35]} 14. b4 {[%emt 0:02:08]} Rfc8 {[%emt 0:04:23]} 15. Rac1 {[%emt 0:01:47]} Rc4 {[%emt 0:01:15]} 16. f3 {[%emt 0:05:13]} ({White should try} 16. Bg5 $11 Nc7 17. Nf4) 16... Rac8 {[%emt 0:06:50]} 17. e4 {[%emt 0:08:20] [#]} e5 {[%emt 0:14:47]} 18. Bxe5 $14 {[%emt 0:13:11]} fxe4 {[%emt 0:01:18]} 19. fxe4 {[%emt 0:07:35]} dxe4 {[%emt 0:02:39]} 20. Qd2 {[%emt 0:01:39] Strongly threatening Ng5.} Nxb4 {[%emt 0:06:19]} (20... Bg4 $11 21. Rf1 Nxb4 22. axb4 Bxb4) 21. Bxf6 $2 {[%emt 0:14:38][%mdl 8192]} (21. axb4 $16 {is necessary to keep the advantage. Hoping for Ng5.} Bxb4 22. Qa2) 21... Bxf6 $19 {[%emt 0:07:39]} 22. axb4 {[%emt 0:05:15] Ne2 is the strong threat.} Rxd4 {[%emt 0:01:03]} (22... Bxd4+ 23. Kh1 (23. Nf2 $2 e3 $19 {[%mdl 64] Deflection, Double Attack}) 23... Be6 24. Nxe4 $14) (22... Bxh3 23. Bxh3 Rxd4 24. Qa2+ Kf8 25. Rxd4 Rxc3 26. Rxc3 $15) 23. Qf2 {[%emt 0:00:13] [#]} Rxc3 $1 {[%emt 0:00:24][%mdl 576] Remove Defender, Deflection} 24. Nf4 {[%emt 0:02:39]} (24. Re1 e3) 24... Rxd1+ {[%emt 0:09:12]} (24... Rxb4 25. Qxb6 axb6 26. Rxc3 Bxc3 27. Ne2 $16 (27. Rxd7 Bd4+ 28. Kf1 g5 $16)) 25. Rxd1 {[%emt 0:00:05]} Qxf2+ {[%emt 0:01:20]} ({Don't blunder} 25... Bg4 $2 26. Qxb6 axb6 27. Re1 $19) (25... Rc1 $142 26. Rxc1 Bd4) 26. Kxf2 {[%emt 0:00:03]} Rc2+ {[%emt 0:01:19]} 27. Ke3 {[%emt 0:00:35] [#]} Rc3+ $2 {[%emt 0:02:44]} (27... Bg4 $1 $19 {[%cal Rg4d1]} 28. Rd2 Rc4 29. Bxe4 Rxb4) 28. Kxe4 {[%emt 0:03:28]} (28. Kf2 $1 $11 Bg4 29. Re1) 28... Bc6+ {[%emt 0:00:26] This pair of bishops is nice.} (28... Bg4 $17 29. Rd2 Rc4+ 30. Kd5 Rxb4) 29. Nd5 {[%emt 0:00:04]} ({White has to play} 29. Kf5 $15) 29... Rc2 {[%emt 0:00:53]} 30. Bf3 {[%emt 0:03:49]} Rxh2 {[%emt 0:04:34]} 31. Rc1 {[%emt 0:02:04] [#]} Bxd5+ {[%emt 0:05:31]} ({Not} 31... Bb7 32. Rc7 Bxd5+ 33. Kxd5 $15) 32. Kxd5 $17 {[%emt 0:00:06][%mdl 4096] Endgame KRB-KRB} Rd2+ {[%emt 0:01:17]} 33. Ke6 {[%emt 0:00:59]} Rd8 {[%emt 0:01:15]} 34. Bc6 {[%emt 0:04:02]} Rc8 {[%emt 0:01:08]} 35. Kd7 {[%emt 0:00:17]} Rd8+ {[%emt 0:00:29]} 36. Ke6 $1 {[%emt 0:00:03]} Rc8 {[%emt 0:00:30]} 37. Kd7 {[%emt 0:00:03] Threatening mate with Bd5+.} Rd8+ {[%emt 0:01:15] Weighted Error Value: White=0.53/Black=0.61} (37... Rb8 $17) 1/2-1/2

[Event "4NCL 2022-2023"]
[Site "Daventry"]
[Date "2023.03.18"]
[Round "7.30"]
[White "Kett, Tim"]
[Black "Stewart, Ashley"]
[Result "0-1"]
[ECO "B21"]
[WhiteElo "2130"]
[BlackElo "2051"]
[Annotator "TA"]
[PlyCount "78"]
[EventDate "2022.10.20"]
[EventType "team-tourn"]
[EventCountry "ENG"]
[SourceTitle "playchess.com"]
[Source "ChessBase"]
[SourceQuality "1"]
[TimeControl "40/6000+30:2400+30"]

{[%evp 9,78,6,11,0,0,0,2,0,-10,-22,-18,-32,-13,-20,-7,-37,4,-9,15,-14,0,0,0,-8,-13,-9,-17,-28,0,0,0,0,0,0,38,22,36,42,73,0,0,0,0,-31,-56,-81,-93,-82,-73,-202,-180,-171,-158,-167,-188,-289,-278,-363,-319,-320,-307,-319,-316,-344,-331,-1446,-1463,-29985,-29986,-29986,-29987]} 1. e4 {[%emt 0:00:19]} c5 {[%emt 0:00:12]} 2. Be2 {[%emt 0:00:12]} Nc6 {[%emt 0:00:22]} 3. f4 {[%emt 0:00:11]} g6 {[%emt 0:01:09]} 4. Nf3 {[%emt 0:00:21]} Bg7 {[%emt 0:00:11]} 5. O-O {[%emt 0:00:10]} e6 {[%emt 0:02:03]} 6. d3 {[%emt 0:01:42] B21: Sicilian: 2 f4 and Morra Gambit.} Nge7 {[%emt 0:00:26]} 7. Qe1 {[%emt 0:01:29]} O-O {[%emt 0:01:43]} 8. c3 {[%emt 0:03:38] The position is equal.} d5 {[%emt 0:07:15]} 9. Nbd2 {[%emt 0:08:05]} b6 {[%emt 0:02:28]} 10. Qh4 {[%emt 0:02:03]} Ba6 {[%emt 0:06:07]} 11. e5 {[%emt 0:08:09]} (11. Ng5 h6 12. Ngf3 dxe4 13. Nxe4 Bxd3 $17) 11... Nf5 {[%emt 0:06:41] [#]} 12. Qh3 $146 {[%emt 0:00:56]} ({Predecessor:} 12. Qf2 d4 13. Ne4 c4 14. dxc4 d3 15. Rd1 Bxc4 16. Ne1 Bd5 17. Rxd3 Qe7 18. Bf3 {1-0 Khalafova,N (2279)-Horak,M (2331) Titled Tuesday intern op 16th June blitz 2020 (2)}) 12... Rc8 {[%emt 0:11:26]} 13. Rf2 {[%emt 0:12:16]} f6 {[%emt 0:07:56]} 14. exf6 {[%emt 0:03:06][%mdl 64] [#] Remove Defender} Qxf6 {[%emt 0:01:14]} 15. Nf1 {[%emt 0:00:29]} (15. g4 Nd6 $15) 15... Rce8 {[%emt 0:07:03]} 16. g4 {[%emt 0:04:55]} Nd6 {[%emt 0:04:22]} (16... Nh6 $2 17. g5 Qf5 18. Qg2 $18) 17. Ng3 $1 {[%emt 0:02:21]} (17. Ng5 h6 18. Nf3 d4 $17) 17... Bc8 {[%emt 0:16:34]} 18. Qg2 {[%emt 0:11:47]} (18. Ng5 h6 19. Nf3 e5 $17) 18... Bb7 {[%emt 0:07:00]} 19. Bd2 {[%emt 0:01:44]} d4 {[%emt 0:04:27][%cal Rd4c3]} 20. Raf1 {[%emt 0:03:27]} Qe7 {[%emt 0:02:20]} 21. Qh3 {[%emt 0:01:51] Against Bh6} b5 {[%emt 0:04:24]} 22. Ng5 {[%emt 0:04:29][%csl Gg5][%cal Rh3h7]} h6 {[%emt 0:01:38]} 23. N5e4 {[%emt 0:00:29]} Nxe4 {[%emt 0:01:35]} 24. Nxe4 {[%emt 0:00:17]} (24. dxe4 $16 {aiming for f5.} c4 25. f5) 24... dxc3 $1 $11 {[%emt 0:01:50]} 25. bxc3 {[%emt 0:00:20] Threatens to win with Be3.} b4 {[%emt 0:00:05]} 26. cxb4 {[%emt 0:06:23]} cxb4 {[%emt 0:00:16]} 27. Be3 {[%emt 0:00:55]} Nd4 {[%emt 0:01:03]} 28. Bd1 {[%emt 0:00:35]} Rc8 {[%emt 0:02:45]} 29. Bb3 {[%emt 0:01:01] White does not recover from this.} (29. g5 $17 {is a better defense.} Bxe4 30. dxe4 hxg5 31. Bd2 (31. fxg5 Rxf2 32. Bxf2 Qxg5+ 33. Qg2 Qxg2+ 34. Kxg2 a5 $15)) 29... Nxb3 $19 {[%emt 0:03:17]} 30. axb3 {[%emt 0:00:16]} Bxe4 {[%emt 0:02:36]} 31. dxe4 {[%emt 0:00:07]} Rc3 {[%emt 0:00:01]} 32. Rf3 {[%emt 0:00:48]} (32. e5 $142) 32... Rxb3 {[%emt 0:01:08]} 33. f5 {[%emt 0:00:24] [#]} Rxe3 $1 {[%emt 0:01:30][%mdl 512]} 34. Rxe3 {[%emt 0:00:15]} Bd4 {[%emt 0:00:40]} 35. Qxh6 {[%emt 0:04:54]} Qg7 {[%emt 0:00:44]} ({Weaker is} 35... Bxe3+ 36. Qxe3 exf5 37. Qb3+ Kg7 38. exf5 $17) 36. Qf4 {[%emt 0:15:58]} gxf5 {[%emt 0:01:25]} ({Inferior is} 36... Bxe3+ 37. Qxe3 a5 38. fxg6 $17) 37. exf5 {[%emt 0:02:38]} (37. Kh1 Bxe3 38. Qxe3 fxe4 39. Rxf8+ Qxf8 40. Qg5+ Qg7 41. Qd8+ Kh7 42. h3) 37... Rxf5 {[%emt 0:01:35]} ({Stronger than} 37... Bxe3+ 38. Qxe3 exf5 39. Qb3+ Rf7 40. Qxb4 $11) 38. Qe4 {[%emt 0:00:35] White is weak on the dark squares} Bxe3+ {[%emt 0:00:49]} 39. Qxe3 {[%emt 0:00:08]} Qxg4+ {[%emt 0:00:29] Weighted Error Value: White=0.49/Black=0.09 (flawless)} 0-1

[Event "4NCL 2022-2023"]
[Site "Daventry"]
[Date "2023.03.18"]
[Round "7.31"]
[White "Starley, Robert"]
[Black "Zeidler, Sven P."]
[Result "1-0"]
[ECO "B08"]
[WhiteElo "2056"]
[BlackElo "2137"]
[Annotator "TA"]
[PlyCount "65"]
[EventDate "2022.10.20"]
[EventType "team-tourn"]
[EventCountry "ENG"]
[SourceTitle "playchess.com"]
[Source "ChessBase"]
[SourceQuality "1"]
[TimeControl "40/6000+30:2400+30"]

{[%evp 12,65,38,39,45,21,45,0,16,-49,-40,-53,44,0,0,0,0,0,0,0,44,34,39,37,37,39,31,0,0,1,36,40,111,110,98,112,121,55,64,60,59,54,161,159,145,128,119,105,105,114,395,385,602,587,536,458]} 1. e4 {[%emt 0:00:03]} Nc6 {[%emt 0:00:05]} 2. Nf3 {[%emt 0:00:08]} d6 {[%emt 0:00:28]} 3. d4 {[%emt 0:00:09]} Nf6 {[%emt 0:00:06]} 4. Nc3 {[%emt 0:00:09]} g6 {[%emt 0:00:06]} 5. Be3 {[%emt 0:00:10]} Bg7 {[%emt 0:00:23]} 6. h3 {[%emt 0:00:12]} O-O {[%emt 0:01:32]} 7. Qd2 {[%emt 0:00:26]} a6 {[%emt 0:06:25] B08: Pirc Defence: Classical System.} 8. g4 {[%emt 0:01:37] [#]} (8. d5 $5 {[%cal Rd5c6]} Ne5 9. Nxe5 dxe5 10. f3 $14) 8... e5 $146 {[%emt 0:05:51]} ({Predecessor:} 8... b5 9. a3 e5 10. d5 Ne7 11. Be2 Bd7 12. O-O-O Qb8 13. Ne1 b4 14. axb4 Qxb4 {½-½ Baldanjantsan,K (1322)-Kaldarova,A (1578) Eastern Asia-ch U14 Girls 2021 (7)}) 9. d5 {[%emt 0:00:22]} Na7 {[%emt 0:02:17][%cal Oa7b5] The position is equal.} 10. O-O-O {[%emt 0:01:05] [#]} (10. a4 $11) 10... Nb5 $1 $15 {[%emt 0:03:16]} 11. Bd3 $1 {[%emt 0:07:21]} Bd7 {[%emt 0:08:15]} (11... c6 $15 12. dxc6 bxc6) 12. g5 {[%emt 0:01:00]} Nh5 {[%emt 0:09:06]} 13. Ne2 {[%emt 0:03:54]} f5 {[%emt 0:14:13] Strongly threatening ...f4.} 14. gxf6 $1 {[%emt 0:03:15]} Qxf6 {[%emt 0:00:12]} 15. Ng5 {[%emt 0:04:57]} Nf4 {[%emt 0:03:39]} 16. Rdg1 {[%emt 0:03:38]} c6 {[%emt 0:14:15]} 17. dxc6 {[%emt 0:02:36]} Nxd3+ {[%emt 0:07:34]} 18. Qxd3 {[%emt 0:01:18]} bxc6 {[%emt 0:00:08]} 19. Rg3 {[%emt 0:04:17]} (19. a4 Nd4 20. Bxd4 exd4 $15) 19... Nd4 {[%emt 0:03:09]} 20. Rhg1 {[%emt 0:13:06]} d5 {[%emt 0:03:14]} 21. h4 {[%emt 0:07:07][%cal Oh4h5] aiming for h5!} (21. Nxd4 {keeps more tension.} exd4 22. Nxh7 Kxh7 23. e5) 21... h6 {[%emt 0:04:16]} (21... dxe4 $14 22. Nxe4 Nxe2+ 23. Qxe2 Qxh4) 22. Bxd4 $16 {[%emt 0:02:54]} exd4 {[%emt 0:00:39] [#]} 23. Ne6 {[%emt 0:09:44][%mdl 64] Discovered Attack, Double Attack} dxe4 {[%emt 0:07:34]} (23... Bxe6 $2 24. Rxg6 Qxf2 25. Rxg7+ Kh8 26. R7g6 $18 (26. Nxd4 Qf4+ 27. Qd2 Qf1+ 28. Qd1 Qxd1+ 29. Kxd1 Bf7 $18)) 24. Qxe4 {[%emt 0:00:23] White is much more active.} (24. Qxd4 $16 Qxd4 25. N2xd4) 24... Qxe6 $14 {[%emt 0:01:11]} (24... Bxe6 $2 25. Rxg6 (25. Qxg6 $2 Ra7 $19) 25... Bf5 26. Rxg7+ Kh8 27. Qxd4 $18) 25. Qxe6+ {[%emt 0:00:17][%mdl 64] Remove Defender} Bxe6 {[%emt 0:00:05] This pair of bishops is nice.} 26. Rxg6 {[%emt 0:00:13]} Rxf2 {[%emt 0:00:46]} (26... Ra7 $1 $14 27. Rxe6 d3) 27. Rxg7+ $18 {[%emt 0:00:51]} ({Resist} 27. Rxe6 $6 Raf8 $14) 27... Kh8 {[%emt 0:01:18] [#]} 28. R7g6 $1 $36 {[%emt 0:01:28][%cal Rg6h6][%mdl 2048] White is really pushing.} Bf5 {[%emt 0:01:25][%cal Of5g6]} 29. Rxh6+ {[%emt 0:00:10]} Bh7 {[%emt 0:00:06]} 30. Nxd4 {[%emt 0:01:06]} Rd8 $2 {[%emt 0:00:30][%mdl 8192]} (30... c5 $16) 31. Rxc6 {[%emt 0:02:07]} (31. Nxc6 $2 {too greedy.} Rxc2+ 32. Kb1 Rxc6+ 33. Rxh7+ Kxh7 $19) 31... Rxd4 {[%emt 0:02:33]} (31... a5 $142 32. b3 Rg8) 32. Rc8+ {[%emt 0:00:13]} (32. Rxa6 {leads to mate.} Rxc2+ 33. Kb1 Rg2+ {[%mdl 64] Discovered Attack}) 32... Bg8 {[%emt 0:00:11]} 33. Rgxg8+ {[%emt 0:00:50] Weighted Error Value: White=0.15 (very precise) /Black=0.45} 1-0

[Event "4NCL 2022-2023"]
[Site "Daventry"]
[Date "2023.03.18"]
[Round "7.32"]
[White "Chong, Kimberly"]
[Black "Sivanandan, Bodhana"]
[Result "0-1"]
[ECO "D94"]
[WhiteElo "1699"]
[BlackElo "1725"]
[Annotator "NA RC COMBH"]
[PlyCount "126"]
[EventDate "2022.10.20"]
[EventType "team-tourn"]
[EventCountry "ENG"]
[SourceTitle "playchess.com"]
[Source "ChessBase"]
[SourceQuality "1"]
[TimeControl "40/6000+30:2400+30"]

1. e4 {[%emt 0:00:04]} c6 {[%emt 0:10:06]} 2. d4 {[%emt 0:00:13]} d5 {[%emt 0:00:13]} 3. exd5 {[%emt 0:00:12]} cxd5 {[%emt 0:00:23]} 4. Nf3 {[%emt 0:00:31]} Nf6 {[%emt 0:00:43]} 5. c4 {[%emt 0:00:36]} g6 {[%emt 0:00:54]} 6. Nc3 {[%emt 0:00:54]} Bg7 {[%emt 0:00:53]} 7. Be3 {[%emt 0:01:44]} O-O {[%emt 0:03:15]} 8. Be2 {[%emt 0:08:19]} Nc6 {[%emt 0:06:18]} 9. O-O {[%emt 0:13:50]} b6 {[%emt 0:15:19]} 10. a3 {[%emt 0:07:13]} Bb7 {[%emt 0:07:08]} 11. b4 {[%emt 0:03:24]} dxc4 {[%emt 0:01:33]} 12. Rc1 {[%emt 0:02:48]} e6 {[%emt 0:03:51]} 13. Bxc4 {[%emt 0:01:34]} Ne7 {[%emt 0:01:46]} 14. Ng5 {[%emt 0:16:03]} h6 {[%emt 0:06:06]} 15. Nf3 {[%emt 0:01:49]} Rc8 {[%emt 0:06:23]} 16. Ne5 {[%emt 0:05:26]} Nfd5 {[%emt 0:05:06]} 17. Nxd5 {[%emt 0:11:23]} Nxd5 {[%emt 0:03:12]} 18. Qg4 {[%emt 0:13:15]} Nxe3 {[%emt 0:06:33]} 19. fxe3 {[%emt 0:00:13]} Bxe5 {[%emt 0:00:36]} 20. dxe5 {[%emt 0:00:16]} Qd2 {[%emt 0:04:32]} 21. Qg3 {[%emt 0:03:09]} Kh7 {[%emt 0:04:13]} 22. Rcd1 {[%emt 0:02:31]} Qxg2+ {[%emt 0:01:38]} 23. Qxg2 {[%emt 0:00:10]} Bxg2 {[%emt 0:00:12]} 24. Kxg2 {[%emt 0:04:12]} Rxc4 {[%emt 0:00:08]} 25. Rd7 {[%emt 0:00:20]} Kg7 {[%emt 0:03:39]} 26. Rxa7 {[%emt 0:00:23]} Re4 {[%emt 0:00:15]} 27. Kf3 {[%emt 0:04:05]} Rxe5 {[%emt 0:00:21]} 28. a4 {[%emt 0:01:16]} Rc8 {[%emt 0:02:40]} 29. Rb7 {[%emt 0:02:42]} Rf5+ {[%emt 0:01:51]} 30. Kg2 {[%emt 0:00:45]} Rc2+ {[%emt 0:00:20]} 31. Kg1 {[%emt 0:00:33]} Rxf1+ {[%emt 0:00:09]} 32. Kxf1 {[%emt 0:00:07]} Ra2 {[%emt 0:00:38]} 33. Rxb6 {[%emt 0:03:42]} Rxa4 {[%emt 0:00:09]} 34. Kg2 {[%emt 0:01:08]} Ra2+ {[%emt 0:00:47]} 35. Kg3 {[%emt 0:00:05]} Re2 {[%emt 0:00:30]} 36. Kf4 {[%emt 0:02:02]} Rxh2 {[%emt 0:00:13]} 37. b5 {[%emt 0:00:18]} Rb2 {[%emt 0:00:22]} 38. Rb8 {[%emt 0:00:16]} h5 {[%emt 0:00:17]} 39. b6 {[%emt 0:00:30]} h4 {[%emt 0:00:37]} 40. Kg4 {[%emt 0:01:07]} Rb4+ {[%emt 0:01:04]} 41. Kh3 {[%emt 0:40:18]} g5 {[%emt 0:40:14]} 42. b7 {[%emt 0:00:16]} f5 {[%emt 0:00:49]} 43. Re8 {[%emt 0:00:44]} Rxb7 {[%emt 0:00:09]} 44. Rxe6 {[%emt 0:00:22]} Kf7 {[%emt 0:00:23]} 45. Re5 {[%emt 0:00:17]} Kf6 {[%emt 0:00:07]} 46. Re8 {[%emt 0:00:00]} Rb3 {[%emt 0:00:00]} 47. Rf8+ {[%emt 0:00:00]} Kg7 {[%emt 0:00:00]} 48. Rxf5 {[%emt 0:00:00]} Rxe3+ {[%emt 0:00:00]} 49. Kh2 {[%emt 0:00:00]} Kg6 {[%emt 0:00:00]} 50. Rb5 {[%emt 0:00:00]} Kh5 {[%emt 0:00:00]} 51. Ra5 {[%emt 0:00:00]} h3 {[%emt 0:00:00]} 52. Rb5 {[%emt 0:00:00]} Kh4 {[%emt 0:00:00]} 53. Rb4+ {[%emt 0:00:00]} g4 {[%emt 0:00:00]} 54. Rc4 {[%emt 0:00:00]} Re2+ {[%emt 0:00:00]} 55. Kh1 {[%emt 0:00:00]} Kg3 {[%emt 0:00:00]} 56. Rc3+ {[%emt 0:00:00]} Kf2 {[%emt 0:00:00]} 57. Kh2 {[%emt 0:00:00]} Ke1+ {[%emt 0:00:00]} 58. Kh1 {[%emt 0:00:00]} Kf2 {[%emt 0:00:00]} 59. Kh2 {[%emt 0:00:00]} Re3 {[%emt 0:00:00]} 60. Rc2+ {[%emt 0:00:00]} Kf3 {[%emt 0:00:00]} 61. Rc7 {[%emt 0:00:00]} Re2+ {[%emt 0:00:00]} 62. Kg1 {[%emt 0:00:00]} Re1+ {[%emt 0:00:00]} 63. Kh2 {[%emt 0:00:00]} g3+ {[%emt 0:00:00]} 0-1

[Event "4NCL 2022-2023"]
[Site "Daventry"]
[Date "2023.03.18"]
[Round "7.33"]
[White "Chow, Samuel"]
[Black "Fernandez, Daniel Howard"]
[Result "0-1"]
[ECO "D31"]
[WhiteElo "2308"]
[BlackElo "2481"]
[Annotator "TA"]
[PlyCount "92"]
[EventDate "2022.10.20"]
[EventType "team-tourn"]
[EventCountry "ENG"]
[SourceTitle "playchess.com"]
[Source "ChessBase"]
[SourceQuality "1"]
[TimeControl "40/6000+30:2400+30"]

{[%evp 10,92,4,0,5,7,22,-2,0,8,36,22,50,48,41,35,53,10,9,26,57,56,51,44,79,50,43,46,64,20,22,28,65,60,120,125,128,113,89,12,16,0,0,0,0,0,0,0,44,49,44,43,56,34,49,46,58,0,0,0,0,0,109,91,82,0,0,0,0,-308,-292,-255,-316,-608,-748,-757,-756,-581,-572,-29980,-29981,-6614,-6015,-29982,-1120]} 1. c4 {[%emt 0:00:06]} c6 {[%emt 0:00:15]} 2. d4 {[%emt 0:02:41]} d5 {[%emt 0:01:23]} 3. Nc3 {[%emt 0:00:23]} e6 {[%emt 0:03:03]} 4. e4 {[%emt 0:09:20]} dxe4 {[%emt 0:01:07]} 5. Nxe4 {[%emt 0:00:09]} Bb4+ {[%emt 0:00:04][%cal Bf8b4,Bb4a5,Ba5c7][%mdl 32]} 6. Nc3 {[%emt 0:00:11]} e5 {[%emt 0:05:09] D31: Queen's Gambit Declined: Semi-Slav without ...Nf6 (+ Marshall Gambit and Noteboom) and Exchange Variation lines without ...Nf6.} 7. Be3 {[%emt 0:06:14][%cal Bc1e3,Be3d4,Bd4c5,Bc5b4,Bb4c3][%mdl 32]} exd4 {[%emt 0:19:54]} 8. Qxd4 {[%emt 0:03:19]} Qxd4 {[%emt 0:02:01] The position is equal.} 9. Bxd4 {[%emt 0:00:07]} f6 {[%emt 0:00:04]} 10. a3 {[%emt 0:07:14]} Ba5 {[%emt 0:00:30]} (10... c5 $2 11. axb4 cxd4 12. Nd5 $18) 11. O-O-O {[%emt 0:01:07]} Ne7 {[%emt 0:01:16] [#]} 12. Ne4 $146 {[%emt 0:01:20]} ({Predecessor:} 12. Re1 Kf7 13. Bc5 Ng6 14. b4 Bc7 15. Nf3 Bf5 16. Nd4 Bd7 17. Nb3 b6 18. Bd4 {1-0 Capragiu,M (1902)-Bulau,A (2170) ROM-ch Rapid 2022 (2)}) 12... Nf5 {[%emt 0:02:02] Dodges Nd6+} 13. Bc5 {[%emt 0:05:39] Threatens to win with g4.} Bc7 {[%emt 0:06:31]} 14. Bb4 {[%emt 0:10:05]} h5 {[%emt 0:04:06]} 15. Bd3 {[%emt 0:02:10]} Kf7 {[%emt 0:06:21]} 16. Bc3 {[%emt 0:01:54]} Nd6 {[%emt 0:09:56]} 17. Nf3 {[%emt 0:02:37]} Nxe4 {[%emt 0:00:24]} 18. Bxe4 {[%emt 0:00:07]} h4 {[%emt 0:04:04]} 19. h3 {[%emt 0:08:01]} Nd7 {[%emt 0:05:37]} 20. Rhe1 {[%emt 0:01:35]} Rh5 {[%emt 0:06:37]} 21. Bc2 {[%emt 0:02:49]} Nb6 {[%emt 0:04:23]} (21... Nf8 $14) 22. b3 $16 {[%emt 0:01:08]} Bf5 {[%emt 0:03:30]} 23. Bxf5 {[%emt 0:05:52]} Rxf5 {[%emt 0:00:02]} 24. Re2 {[%emt 0:05:15]} ({White should try} 24. a4 $16 {a5 would be deadly.} Rd8 25. Rxd8 (25. Nxh4 Rxf2 26. Rxd8 Bxd8 $14) 25... Bxd8 26. Rd1 (26. Nxh4 Rxf2 27. Bd4 Rf4 $11)) 24... Re8 $11 {[%emt 0:02:34]} 25. Rde1 {[%emt 0:02:26]} Rxe2 {[%emt 0:02:11]} 26. Rxe2 {[%emt 0:00:06]} g5 {[%emt 0:00:23]} 27. Kc2 {[%emt 0:04:53]} Nd7 {[%emt 0:00:09]} 28. Rd2 {[%emt 0:03:16]} Nc5 {[%emt 0:05:26]} 29. b4 {[%emt 0:02:04]} Ne6 {[%emt 0:00:02]} 30. Rd7+ {[%emt 0:01:34]} Ke8 {[%emt 0:00:01]} 31. Rh7 {[%emt 0:00:16]} b5 {[%emt 0:05:45]} 32. c5 {[%emt 0:01:42]} a6 {[%emt 0:02:57]} 33. Kb3 {[%emt 0:04:34]} (33. Kd3 $14) 33... Be5 {[%emt 0:06:17]} 34. Rh8+ {[%emt 0:05:07]} Kf7 {[%emt 0:00:42]} 35. Rh7+ {[%emt 0:01:25]} Kg6 {[%emt 0:01:15]} (35... Ke8 $11) 36. Re7 $16 {[%emt 0:00:40]} Nf4 {[%emt 0:00:41] Hoping for ...Bxc3.} 37. Bxe5 {[%emt 0:03:52]} (37. Nxe5+ $16 fxe5 38. Rc7 (38. Rxe5 $2 Rxe5 39. Bxe5 Nxg2 $19) (38. Bxe5 Nd5 $11)) 37... Nxg2 $11 {[%emt 0:01:12][%mdl 64] [#] Discovered Attack} 38. Nd4 {[%emt 0:05:18][%csl LRc6,LRf5]} Rxe5 {[%emt 0:00:03]} 39. Rxe5 {[%emt 0:00:48][%mdl 8192]} (39. Rd7 $11 {and White is okay.}) 39... fxe5 $19 {[%emt 0:00:02]} 40. Nxc6 $11 {[%emt 0:00:07][%mdl 4096] Endgame KN-KN} Kf6 {[%emt 0:00:56][%cal Og5g4] ...g4! is the strong threat.} 41. Nd8 $2 {[%emt 0:00:15] [#]} (41. Nb8 Ke6 42. f3 (42. Nxa6 $2 g4 $19)) 41... g4 $1 $19 {[%emt 0:00:00][%mdl 512]} 42. c6 {[%emt 0:01:09]} Ke7 {[%emt 0:00:00]} ({Stronger than} 42... gxh3 43. c7 h2 44. c8=Q $11 (44. c8=R $2 {too greedy.} h1=Q $19)) 43. Nf7 {[%emt 0:00:20]} gxh3 {[%emt 0:00:00]} (43... Kxf7 $2 44. c7 $18 (44. hxg4 $2 {loses.} Ke6 $19)) 44. Nxe5 {[%emt 0:00:51]} h2 {[%emt 0:00:00]} 45. c7 {[%emt 0:00:17]} h1=Q {[%emt 0:00:00] ( -> ...Qc1)} 46. c8=Q {[%emt 0:00:13] Prevents Qc1} Qb1+ {[%emt 0:00:00] Weighted Error Value: White=0.63/Black=0.13 (very precise)} 0-1